Cogmind - Beta 17.1 @@@ ROGUE MODE // 2026.09.12 @ 08:28:54 Player: 4R-ZE3 Result: Escaped! Performance ------------- Evolutions (9) 4500 Regions Visited (29) 5800 Robots Destroyed (520) 2600 Value Destroyed (26622) 26622 Prototype IDs (38) 760 Alien Tech Used (2) 400 Bonus (20623) 20623 TOTAL SCORE: 61305 Bonus ------- Triggered High Security 500 High Alert Combat Kills 7650 Follower Combat Kills 3110 Entered Garrisons 1600 Used RIF Installer 4500 Scanned by Researcher 500 Win 3000 Friendly Fire -237 Cogmind --------- Core Integrity 1462/1600 Matter 300/300 Energy 1079/1100 System Corruption 23% Temperature Cool (-135) Movement Treading (155) Location To Epsilon Eridani Parts ------- > --- POWER (4) -------- Quantum Reactor (fused) Quantum Reactor Quantum Reactor (fused) Reinforced Quantum Reactor > --- PROPULSION (6) --- Biometal Heavy Treads Advanced Heavy Siege Treads High-density Centrium Heavy Treads > --- UTILITY (12) ----- Improved Cryofiber Web (fused) Advanced Heat Sink (fused) Experimental Cooling System Experimental Cooling System (fused) Experimental Cooling System Huge Storage Unit Spectral Analyzer Precision Energy Filter Precision Energy Filter Quantum Capacitor AEGIS Remote Shield (fused) > --- WEAPON (3) ------- Long-range Proton Cannon Potential Cannon > --- INVENTORY (25) --- Quantum Reactor Quantum Reactor Quantum Reactor Quantum Reactor Reinforced Quantum Reactor Armored Heavy Treads Advanced Heavy Siege Treads Compact Wheel Experimental Energy Well (600) Experimental Energy Well (600) Advanced Sensor Array Quantum Capacitor Advanced Phase Shifter Graphene Brace Experimental Thermal Shield Advanced Component Analysis Suite Gamma Rifle Enhanced Nova Cannon Improved Remote Datajack Improved Plasma Cutter Peak State ------------ > --- POWER ------------ Quantum Reactor Quantum Reactor Quantum Reactor Reinforced Quantum Reactor > --- PROPULSION ------- Biometal Heavy Treads Advanced Heavy Siege Treads High-density Centrium Heavy Treads > --- UTILITY ---------- Improved Cryofiber Web Advanced Heat Sink Experimental Cooling System Experimental Cooling System Experimental Cooling System Huge Storage Unit Experimental Energy Well Spectral Analyzer Precision Energy Filter Quantum Capacitor AEGIS Remote Shield > --- WEAPON ----------- Long-range Proton Cannon Potential Cannon > --- INVENTORY -------- Quantum Reactor Quantum Reactor Quantum Reactor Quantum Reactor Reinforced Quantum Reactor Armored Heavy Treads Advanced Heavy Siege Treads Experimental Energy Well Advanced Trap Scanner Advanced Sensor Array Quantum Capacitor Advanced Phase Shifter Graphene Brace Experimental Thermal Shield Advanced Component Analysis Suite Subatomic Replicator Gamma Rifle Enhanced Nova Cannon Improved Remote Datajack Improved Plasma Cutter [Rating: 221] Favorites ----------- Power Quantum Reactor Engine Reinforced Deuterium Engine Power Core Light Nuclear Core Reactor Quantum Reactor Propulsion Heavy Treads Treads Heavy Treads Leg Improved Thunder Leg Wheel Wheel Utility Huge Storage Unit Device Advanced Heat Sink Storage Huge Storage Unit Processor Advanced Signal Interpreter Hackware Relay Coupler [NC] Protection Light Armor Plating Artifact Phase Redirector Weapon Enhanced Nova Cannon Energy Gun Advanced Beam Rifle Energy Cannon Enhanced Nova Cannon Ballistic Gun Improved Assault Rifle Ballistic Cannon Light Cannon Launcher Missile Launcher Special Weapon Improved Remote Datajack Build | -11 -10 -10 -9 -9 -9 -8 -8 -8 -7 -7 -6 -6 -6 -6 -6 -6 -5 -5 -5 -5 -5 -5 -4 -4 -3 -3 -2 -2 -1 ------- Run | Yrd Mat Min Mat Sto Gar Mat Gar Mat Fac Gar Fac Was Fac Gar Fac Gar Fac Was Fac Gar Fac Gar Fac Gar Res Tes Res Qua Acc Slots Evolved 18 | . . . 2 . . 2 . . 2 . 2 . . . . . 2 . . . . . 2 . 2 . 2 . 2 Power 3 | . . . . . . . . . . . . . . . . . 1 . . . . . 1 . . . . . 1 Propulsion 4 | . . . 1 . . 1 . . . . 2 . . . . . . . . . . . . . . . . . . Utility 10 | . . . . . . 1 . . 2 . . . . . . . 1 . . . . . 1 . 2 . 2 . 1 Weapon 1 | . . . 1 . . . . . . . . . . . . . . . . . . . . . . . . . . Parts Attached 222 | 6 7 . 3 10 1 28 7 14 7 4 5 12 3 10 3 5 10 17 1 1 . 1 1 7 4 14 13 3 25 Power 30 | 1 1 . . 1 . 4 . 1 1 . . 2 . 1 . . 3 3 . . . . 1 2 . 1 2 . 6 Engine 7 | 1 . . . 1 . 4 . . 1 . . . . . . . . . . . . . . . . . . . . Core 4 | . 1 . . . . . . 1 . . . . . . . . 2 . . . . . . . . . . . . Reactor 19 | . . . . . . . . . . . . 2 . 1 . . 1 3 . . . . 1 2 . 1 2 . 6 Propulsion 54 | 2 2 . 1 2 1 10 3 8 . 2 2 4 . 1 1 2 1 5 . . . . . . . . 3 . 4 Treads 47 | 2 . . . 2 1 10 2 8 . . 2 4 . 1 1 2 1 4 . . . . . . . . 3 . 4 Leg 1 | . . . . . . . . . . . . . . . . . . 1 . . . . . . . . . . . Wheel 6 | . 2 . 1 . . . 1 . . 2 . . . . . . . . . . . . . . . . . . . Hover . | . . . . . . . . . . . . . . . . . . . . . . . . . . . . . . Flight . | . . . . . . . . . . . . . . . . . . . . . . . . . . . . . . Utility 76 | 1 3 . 1 1 . 6 . 3 3 . 1 6 3 3 1 2 3 5 1 1 . 1 . 5 4 6 4 3 9 Device 47 | . . . 1 1 . 2 . 1 3 . 1 4 3 2 . 2 2 5 . . . 1 . 2 2 5 3 1 6 Storage 6 | 1 2 . . . . . . . . . . . . . . . . . . . . . . . . 1 1 . 1 Processor 3 | . . . . . . . . . . . . 1 . . . . . . . . . . . . 1 . . . 1 Hackware 12 | . . . . . . . . . . . . 1 . 1 1 . 1 . 1 1 . . . 3 1 . . 1 1 Protection 7 | . 1 . . . . 4 . 2 . . . . . . . . . . . . . . . . . . . . . Artifact 1 | . . . . . . . . . . . . . . . . . . . . . . . . . . . . 1 . Weapon 62 | 2 1 . 1 6 . 8 4 2 3 2 2 . . 5 1 1 3 4 . . . . . . . 7 4 . 6 Energy Gun 21 | . . . 1 1 . 2 . . 2 1 1 . . 3 . 1 2 1 . . . . . . . 3 2 . 1 Energy Cannon 19 | . . . . . . . 1 . . 1 . . . 1 1 . 1 3 . . . . . . . 4 2 . 5 Ballistic Gun 16 | 2 1 . . 3 . 5 3 2 . . . . . . . . . . . . . . . . . . . . . Ballistic Cannon 1 | . . . . 1 . . . . . . . . . . . . . . . . . . . . . . . . . Launcher 3 | . . . . . . 1 . . 1 . . . . 1 . . . . . . . . . . . . . . . Special Weapon 2 | . . . . 1 . . . . . . 1 . . . . . . . . . . . . . . . . . . Impact Weapon . | . . . . . . . . . . . . . . . . . . . . . . . . . . . . . . Slashing Weapon . | . . . . . . . . . . . . . . . . . . . . . . . . . . . . . . Piercing Weapon . | . . . . . . . . . . . . . . . . . . . . . . . . . . . . . . Special Melee Weapon . | . . . . . . . . . . . . . . . . . . . . . . . . . . . . . . Unidentified Prototypes 14 | . . . . 2 . 4 . . . . 1 . . . . . 1 . . . . . . . . 2 . 1 3 Parts Lost 30 | . 1 . 2 2 . 13 1 1 . . 1 . . 2 1 1 3 . . . . . . . . . . . 2 Power 5 | . 1 . . 1 . 1 . . . . . . . 1 . . 1 . . . . . . . . . . . . Propulsion 9 | . . . . 1 . 7 . . . . . . . . 1 . . . . . . . . . . . . . . Utility 7 | . . . 1 . . 2 . . . . 1 . . . . . 1 . . . . . . . . . . . 2 Weapon 9 | . . . 1 . . 3 1 1 . . . . . 1 . 1 1 . . . . . . . . . . . . Highest Loss Streak 6 | . 1 . 2 2 . 6 1 1 . . 1 . . 1 1 1 1 . . . . . . . . . . . 1 To Critical Strikes . | . . . . . . . . . . . . . . . . . . . . . . . . . . . . . . Average Backups 22 | 2 14 20 21 24 25 24 24 24 23 25 24 23 21 22 22 24 23 23 22 23 23 22 20 21 21 21 21 21 20 Power 2 | . 3 3 3 3 3 2 3 2 2 2 2 1 2 1 1 1 . 1 3 3 3 3 2 2 3 1 1 2 3 Propulsion 2 | 1 3 5 4 6 8 6 3 3 5 7 5 2 3 2 1 . 1 1 2 2 2 2 2 2 2 1 1 1 2 Utility 8 | . . 2 4 4 3 2 4 7 7 8 9 10 9 9 9 12 13 11 11 11 11 10 9 9 9 12 10 10 9 Weapon 6 | . 6 10 9 10 11 12 12 12 8 7 7 6 5 7 8 7 6 6 5 5 5 5 5 6 5 3 5 4 2 Tool/Special . | . . . . . . . . . . . . . . . . . . . . . . . . . . . . . . Unused Backups 96 | . 1 . 2 6 . 8 5 6 3 1 1 13 4 1 . 5 . 4 . . 1 2 . . 3 15 4 2 9 Power 15 | . 1 . . . . 2 1 2 1 . . 3 . . . . . 2 . . . . . . 1 1 . 1 . Propulsion 13 | . . . . 1 . . 1 . . . . 5 . . . . . 1 . . . . . . . . 1 . 4 Utility 24 | . . . . 2 . 1 1 . 1 . 1 3 2 . . 2 . 1 . . . 2 . . . 4 . . 4 Weapon 43 | . . . 2 3 . 5 2 4 1 1 . 2 2 1 . 3 . . . . 1 . . . 2 10 3 1 . Tool/Special 1 | . . . . . . . . . . . . . . . . . . . . . . . . . . . . . 1 Average Slot Usage (%) 87 | . 89 100 98 99 100 99 100 99 99 100 97 89 80 79 78 79 80 81 82 82 82 82 83 84 84 84 85 86 82 Engine 2 | . 10 . . 8 11 8 9 8 3 7 6 3 . . . . . . . . . . . . . . . . . Reactor 8 | . . . . . . . . . . . . 2 6 6 6 6 7 9 11 11 11 11 15 15 14 14 13 13 15 Treads 18 | . 4 . . 29 33 35 22 35 30 17 35 29 20 20 19 19 17 17 17 17 17 17 15 15 14 14 13 13 12 Wheel 2 | . 23 28 32 3 . . 13 . . 12 2 . . . . . . . . . . . . . . . . . . Device 20 | . . . 2 11 11 13 18 11 28 23 24 18 13 16 15 18 22 17 16 12 11 11 14 19 23 22 29 30 30 Storage 6 | . 14 14 11 11 11 9 9 9 7 7 6 6 6 6 6 6 5 5 5 5 5 5 5 5 4 4 4 4 4 Processor 3 | . . . . . . . . . . . . 1 6 6 6 6 5 5 5 5 5 5 5 5 4 4 4 4 6 Hackware 3 | . . . . . . . . . . . . 5 6 2 3 1 . 5 5 9 11 11 10 5 8 9 8 8 3 Protection 1 | . 4 14 8 . . 4 . 6 1 7 1 . . . . . . . . . . . . . . . . . . Energy Gun 5 | . . . 2 . . . . . 21 22 18 18 18 16 12 19 16 13 . . . . . . . 4 5 . 1 Energy Cannon 5 | . . . . . . . . . . . . . . 2 5 . . 2 16 16 17 16 15 14 13 8 7 12 8 Ballistic Gun 6 | . 27 28 29 31 33 26 26 26 . . . . . . . . . . . . . . . . . . . . . Peak Build Rating 221 | 6 11 11 17 19 18 38 38 41 46 46 58 85 86 89 88 92 105 115 116 119 114 116 128 134 146 152 189 195 221 Average Rating 114 | 4 7 11 13 17 18 27 34 34 44 43 53 71 84 87 85 89 100 101 115 114 113 115 127 132 142 145 173 186 211 On Entrance 78 | . 6 11 11 17 18 18 38 33 38 45 44 58 85 84 87 86 92 90 115 114 113 114 116 128 133 145 142 187 188 Avg Prop Armor Cover (%) 13 | . . . . . . . 13 . . 15 15 . . . . . . . . . . 11 . . . . . . 7 Naked Turns . | . . . . . . . . . . . . . . . . . . . . . . . . . . . . . . Heaviest Build 239 | 13 89 52 93 96 96 107 110 109 114 121 115 109 113 121 116 116 131 168 168 168 167 167 184 187 185 186 211 211 239 Greatest Support 245 | 40 40 20 30 60 60 80 80 80 80 80 120 210 210 210 210 210 210 215 215 215 215 215 215 215 215 215 235 235 245 Greatest Overweight (x) 6 | . 4 2 3 4 1 1 5 1 1 6 5 . . . . . . . . . . 1 . . . . . . 1 Average Overweight (x) . | . 2 2 2 1 1 1 3 1 1 4 . . . . . . . . . . . . . . . . . . . Largest Inventory Capacity 25 | 8 25 20 25 25 25 25 25 25 25 25 25 25 25 25 25 25 25 25 25 25 25 25 25 25 25 25 25 25 25 Average Capacity 24 | 7 20 20 23 25 25 25 25 25 25 25 25 25 25 25 25 25 25 25 25 25 25 25 25 25 25 25 25 25 25 Most Carried 25 | 5 20 20 25 25 25 25 25 25 25 25 25 25 25 25 25 25 25 25 25 25 25 25 25 25 25 25 25 25 25 Average Carried 24 | 2 14 20 21 24 25 24 24 24 24 24 24 24 24 24 23 24 24 24 24 24 25 24 23 24 24 24 24 24 23 Final Capacity 25 | 8 20 20 25 25 25 25 25 25 25 25 25 25 25 25 25 25 25 25 25 25 25 25 25 25 25 25 25 25 25 Final Carried 25 | 4 20 20 25 25 25 25 25 25 25 25 25 25 25 25 25 25 25 25 25 25 25 25 25 25 25 24 25 25 23 Class Distribution -------------------- 19% | Generator-Tank 18% | Scavenger-Tank 11% | Tank 11% | Botlord-Tank 9% | Scavenger-Gunner 8% | Scavenger-Skirmisher 4% | Mutant 4% | Gunner 3% | Bothacker-Tank 3% | Skirmisher Dominant Class ---------------- Mutant | -10/Materials Mutant | -10/Mines Tank | -9/Materials Gunner | -9/Storage Gunner | -9/Garrison Scavenger-Tank | -8/Materials Scavenger-Gunner | -8/Garrison Scavenger-Tank | -8/Materials Skirmisher | -7/Factory Tank | -7/Garrison Skirmisher | -6/Factory Scavenger-Skirmisher | -6/Waste Scavenger-Skirmisher | -6/Factory Bothacker-Tank | -6/Garrison Scavenger-Skirmisher | -6/Factory Botlord-Tank | -6/Garrison Botlord-Tank | -5/Factory Botlord-Tank | -5/Waste Botlord-Tank | -5/Factory Botlord-Tank | -5/Garrison Botlord-Tank | -5/Factory Bothacker-Tank | -5/Garrison Bothacker-Skirmisher | -4/Factory Scavenger-Tank | -4/Garrison Scavenger-Tank | -3/Research Scavenger-Skirmisher | -3/Testing Scavenger-Tank | -2/Research Tank | -2/Quarantine Generator-Tank | -1/Access Resources | -11 -10 -10 -9 -9 -9 -8 -8 -8 -7 -7 -6 -6 -6 -6 -6 -6 -5 -5 -5 -5 -5 -5 -4 -4 -3 -3 -2 -2 -1 ----------- Run | Yrd Mat Min Mat Sto Gar Mat Gar Mat Fac Gar Fac Was Fac Gar Fac Gar Fac Was Fac Gar Fac Gar Fac Gar Res Tes Res Qua Acc Matter Collected 9597 | 248 239 . 109 363 124 1190 814 782 160 66 106 266 122 368 140 243 237 281 61 44 . 225 . 294 . 756 812 217 1330 Remotely . | . . . . . . . . . . . . . . . . . . . . . . . . . . . . . . Salvage Created 29912 | . 456 . 109 715 216 1972 887 1207 284 81 364 1599 125 1169 135 456 897 1547 . 38 . 453 75 171 66 1096 1979 693 13122 Parts 1246 | . 32 . 12 41 15 116 49 57 10 7 16 41 3 32 3 14 48 39 . 1 . 16 3 11 2 48 116 38 476 Haulers Intercepted 9 | . 1 . . 2 . 3 . 1 . . . . . . . . . . . . . . . . . . . . 2 Recyclers Shooed 12 | . . . . . . 3 . . . . . . 1 . 1 . . . . . . . . . . . . . 7 Parts Field Recycled . | . . . . . . . . . . . . . . . . . . . . . . . . . . . . . . Retrieved Matter . | . . . . . . . . . . . . . . . . . . . . . . . . . . . . . . Parts Self-Destructed . | . . . . . . . . . . . . . . . . . . . . . . . . . . . . . . Prevented . | . . . . . . . . . . . . . . . . . . . . . . . . . . . . . . Parts Restored . | . . . . . . . . . . . . . . . . . . . . . . . . . . . . . . Kills | -11 -10 -10 -9 -9 -9 -8 -8 -8 -7 -7 -6 -6 -6 -6 -6 -6 -5 -5 -5 -5 -5 -5 -4 -4 -3 -3 -2 -2 -1 ------- Run | Yrd Mat Min Mat Sto Gar Mat Gar Mat Fac Gar Fac Was Fac Gar Fac Gar Fac Was Fac Gar Fac Gar Fac Gar Res Tes Res Qua Acc Combat Hostiles Destroyed 400 | . 12 . 2 12 5 38 22 20 6 1 8 5 2 21 3 8 10 6 . 1 . 6 1 4 1 14 19 7 166 Guns 172 | . 12 . 2 12 5 38 22 20 5 1 7 5 1 17 1 7 9 6 . . . . . . . 1 . . 1 Cannons 119 | . . . . . . . . . . . . . . . . . . . . 1 . 6 1 4 1 9 15 5 77 AOE 60 | . . . . . . . . . . . . . . . . . . . . . . . . . . . . . 60 Classes Destroyed 25 | . 5 . 2 1 1 3 . 2 1 . . 1 . 2 . . 1 . . . . . . . . . . . 6 Worker 30 | . 1 . . 1 . 2 . 1 . . 1 . . . . . 1 . . . . . . . . 2 2 1 18 Builder 51 | . . . . . . . . . . . . . . . . . 1 . . . . . . . . . 2 1 47 Tunneler 4 | . . . . . . . . 1 . . . . . . . . . . . . . . . . . . . . 3 Hauler 9 | . 1 . . 2 . 3 . 1 . . . . . . . . . . . . . . . . . . . . 2 Recycler 25 | . . . . . . 1 . 4 . . . . . . . . . . . . . . . . . . 2 . 18 Carrier 5 | . . . . . . . . . . . . . . . . . . . . . . . . . . . . . 5 Mechanic 3 | . . . . . . . . . . . . . . . . . . . . . . . . . . . . . 3 Operator 9 | . . . 1 1 . 1 . 1 . . . . . . . . 1 . . . . . . . . 1 1 1 1 Watcher 20 | . 1 . . . . 2 . . . . . . . . . . 3 . . . . . . . . . 3 3 8 Swarmer 43 | . 6 . . . . 11 6 4 . . 3 . . 4 1 . . . . . . . . 2 . . . . 6 Saboteur 4 | . . . . . . . . . . . . . . 1 . . . . . . . . . . . . . . 3 Grunt 152 | . 6 . . 7 2 15 9 7 3 . 3 . . 10 2 2 . . . . . . 1 2 1 9 . 2 71 Brawler 18 | . . . . 1 1 . . 1 1 . 1 . . 1 . . . . . . . . . . . . . . 12 Duelist 11 | . . . . . 2 1 . . . . . . . 2 . . . . . . . 1 . . . . . . 5 Protector 6 | . . . . . . . . . . . . . . . . . . . . . . . . . . . . . 6 Sentry 36 | . . . 2 4 . 7 6 7 . . 1 . 1 1 . . 1 . . . . 2 . . . . 1 . 3 Specialist 6 | . . . . . . 3 1 . . . . . . . . . . . . . . . . . . . . . 2 Hunter 34 | . . . . . . . . 1 1 . . . . . . . 4 . . . . . . . . . 4 . 24 Programmer 67 | . . . . . . . . . 1 1 . . 1 1 . 5 4 . . . . 3 . . . 5 12 5 29 Heavy 2 | . . . . . . 1 . . . . . . . . . . . . . . . . . . . . . . 1 Behemoth 8 | . . . . . . . . . . . . . . 1 . 1 1 . . 1 . . . . . . 2 . 2 Compactor 11 | . . . . . . . . . . . . 5 . . . . . 6 . . . . . . . . . . . Investigator 1 | . . . . . . . . . . . . . . . . . . . . . . . . . . . . . 1 Striker 1 | . . . . . . . . . . . . . . . . . . . . . . . . . . . . . 1 Executioner 1 | . . . . . . . . . . . . . . . . . . . . . . . . . . . . . 1 Butcher 1 | . . . . . . . . . . . . . . . . . . . . . . 1 . . . . . . . Best Kill Streak 26 | . 7 . 2 4 5 7 4 5 3 1 6 1 1 7 2 3 3 2 . 1 . 3 1 2 1 3 4 3 26 Combat Bots Only 21 | . 6 . 1 3 5 4 4 4 3 1 5 1 1 7 2 3 2 2 . 1 . 3 1 2 1 3 4 3 21 Max Kills in Single Turn 5 | . 2 . 1 2 1 2 1 3 2 1 1 1 1 2 1 2 2 1 . 1 . 1 1 2 1 2 2 1 5 Gunslinging 1 | . 1 . . 1 . 1 . 1 1 . . . . 1 . . . . . . . . . . . . . . . Exploded 2 | . . . . . . . . . . . . . . . . . . . . . . . . . . . . . 2 Melee . | . . . . . . . . . . . . . . . . . . . . . . . . . . . . . . Uniques/NPCs Destroyed . | . . . . . . . . . . . . . . . . . . . . . . . . . . . . . . Combat | -11 -10 -10 -9 -9 -9 -8 -8 -8 -7 -7 -6 -6 -6 -6 -6 -6 -5 -5 -5 -5 -5 -5 -4 -4 -3 -3 -2 -2 -1 -------- Run | Yrd Mat Min Mat Sto Gar Mat Gar Mat Fac Gar Fac Was Fac Gar Fac Gar Fac Was Fac Gar Fac Gar Fac Gar Res Tes Res Qua Acc Hostile Shots Fired 1690 | . 37 . 16 29 6 206 103 102 21 8 39 . 39 164 11 42 99 . 2 10 . 29 2 30 4 68 94 28 501 Missed 485 | . 8 . 1 7 1 61 19 22 3 2 10 . 16 40 4 9 31 . 1 2 . 10 . 9 1 15 30 11 172 Hits 1205 | . 29 . 15 22 5 145 84 80 18 6 29 . 23 124 7 33 68 . 1 8 . 19 2 21 3 53 64 17 329 Melee 16 | . . . . . . 3 . . 2 . . . . 9 . . . . . . . . . . . . . . 2 Projectile 1189 | . 29 . 15 22 5 142 84 80 16 6 29 . 23 115 7 33 68 . 1 8 . 19 2 21 3 53 64 17 327 AOE 1 | . . . . . . . . . . . . . . . . . . . . . . . . . . . . . 1 Critical Strikes 47 | . 1 . . 1 . 5 3 2 1 . . . 1 12 1 2 1 . . . . 2 . . . 3 . . 12 Actively Blocked 12 | . . . . . . . . . . . . . . . . 2 1 . . . . . . . . 2 . . 7 Part Disruptions 5 | . . . . . . . . . . . . . . . . . . . . . . 1 . 1 . . 1 . 2 Damage Taken 17417 | . 273 . 226 295 50 2349 994 1094 300 119 493 . 312 1938 279 675 1103 . 83 186 . 457 61 421 61 755 766 192 3935 Core 1190 | . 22 . . 27 20 175 105 140 28 38 25 . 27 117 15 14 126 . 23 . . 41 . 23 . 50 22 14 138 Absorbed by Shields 5114 | . . . . . . . . . . . . . . 213 . . . . . . . . . . . 190 736 182 3793 Reduced by Siege Mode 1358 | . . . . . . . . . . . . . 20 278 . 131 58 . . . . . . . . 96 98 10 667 Ignored by Resistances 516 | . . . . . . . . . . . . . . . . . 95 . . 28 . . . . . 158 161 32 42 Regen/Repaired (Parts) 1078 | . . . . . . . . . . . . . . . . . . 296 . 66 . 76 10 218 . 328 . . 84 Core Remaining (%) 84 | 100 . 91 . . 88 . . 23 . 90 . . . . . 76 . . . . . 81 . 98 . 96 . 97 91 Volleys Fired 1362 | . 31 . 12 34 9 95 58 55 14 10 15 73 16 55 12 20 39 44 2 9 3 29 2 30 11 57 56 52 519 Largest 3 | . 2 . 3 3 3 3 3 3 3 3 3 3 3 3 3 3 3 3 1 3 1 3 3 3 3 3 3 3 3 Hottest 360 | . 40 . 105 100 69 71 75 76 187 187 202 202 202 250 250 245 240 236 7 346 120 346 346 346 346 346 360 360 360 Shots Fired 2698 | . 62 . 36 88 23 283 156 163 40 14 43 211 32 136 22 60 109 120 2 18 3 72 6 47 13 115 140 91 593 Gun 1631 | . 62 . 36 80 23 282 150 162 39 12 42 206 23 121 10 59 107 114 . . . . . . . 29 45 . 29 Cannon 993 | . . . . 5 . . 6 1 . 2 . . 7 13 8 . . . . 17 3 65 6 35 10 76 91 90 558 Launcher 3 | . . . . . . 1 . . 1 . . . . 1 . . . . . . . . . . . . . . . Special 71 | . . . . 3 . . . . . . 1 5 2 1 4 1 2 6 2 1 . 7 . 12 3 10 4 1 6 Kinetic 797 | . 62 . 33 85 23 282 150 162 . . . . . . . . . . . . . . . . . . . . . Thermal 1603 | . . . 3 3 . . 6 1 39 14 42 206 30 134 18 59 107 114 . 17 3 65 6 35 10 76 91 90 434 Explosive 3 | . . . . . . 1 . . 1 . . . . 1 . . . . . . . . . . . . . . . Electromagnetic 227 | . . . . . . . . . . . . . . . . . . . . . . . . . . 29 45 . 153 Robot Hit Streak 31 | . 9 . 13 19 9 17 19 15 8 3 28 14 5 31 12 12 15 22 2 6 . 17 4 8 11 18 30 10 23 Robot Miss Streak 5 | . 4 . 3 2 1 5 3 4 2 1 3 3 2 2 3 1 3 2 . 1 . 3 . 2 1 2 2 3 3 Penetration Max . | . . . . . . . . . . . . . . . . . . . . . . . . . . . . . . Secondary Targets 45 | . 1 . . 1 2 10 9 3 1 . 2 . . 9 . 2 3 2 . . . . . . . . . . . Max Gunslinging Chain 2 | . 1 . . 1 1 2 1 1 1 . 1 . . 1 . 1 1 1 . . . . . . . . . . . Capacitor 445 | . . . . . . . . . . . . . . . . . . . . . . . . . . . . . 445 Shots Hit Robots 1738 | . 32 . 24 62 16 201 107 119 32 6 31 153 18 101 14 43 69 100 2 12 . 42 4 29 5 70 92 29 325 Core Hits 787 | . 21 . 10 25 9 85 42 55 13 3 26 22 4 44 9 22 29 18 . 3 . 13 2 6 2 22 34 12 256 Critical Kills 21 | . 1 . . . . 1 . 1 . . . . . 1 1 . 2 2 . . . . . . . 1 1 2 8 Critical Parts Destroyed 8 | . . . . . 1 . . 1 . . . 1 1 3 . . 1 . . . . . . . . . . . . Critical Strikes 74 | . 1 . . . 1 1 . 2 5 1 2 15 1 11 2 3 8 8 . . . . . . . 1 1 2 9 Burn 38 | . . . . . . . . . 5 1 2 10 . 7 1 3 5 4 . . . . . . . . . . . Meltdown 13 | . . . . . . . . . . . . . . . 1 . . . . . . . . . . 1 1 2 8 Destroy 22 | . 1 . . . 1 1 . 2 . . . 5 1 4 . . 3 4 . . . . . . . . . . . Corrupt 1 | . . . . . . . . . . . . . . . . . . . . . . . . . . . . . 1 Melee Attacks . | . . . . . . . . . . . . . . . . . . . . . . . . . . . . . . Impact . | . . . . . . . . . . . . . . . . . . . . . . . . . . . . . . Slashing . | . . . . . . . . . . . . . . . . . . . . . . . . . . . . . . Piercing . | . . . . . . . . . . . . . . . . . . . . . . . . . . . . . . Sneak Attacks . | . . . . . . . . . . . . . . . . . . . . . . . . . . . . . . Combat Hostiles . | . . . . . . . . . . . . . . . . . . . . . . . . . . . . . . Follow-up Attacks . | . . . . . . . . . . . . . . . . . . . . . . . . . . . . . . Damage Inflicted 89005 | . 399 . 280 882 257 3311 1865 2381 635 123 711 3585 368 2473 267 1096 1753 2332 . 482 . 1793 160 809 80 2496 4659 1927 53881 Guns 25035 | . 399 . 280 882 257 3311 1865 2381 635 123 711 3585 368 2177 176 1096 1753 2332 . . . . . . . 671 1113 . 920 Cannons 40880 | . . . . . . . . . . . . . . 193 91 . . . . 482 . 1793 160 809 80 1825 3546 1927 29974 Explosions 23090 | . . . . . . . . . . . . . . 103 . . . . . . . . . . . . . . 22987 Melee . | . . . . . . . . . . . . . . . . . . . . . . . . . . . . . . Ramming . | . . . . . . . . . . . . . . . . . . . . . . . . . . . . . . Kinetic 9330 | . 399 . 235 882 257 3311 1865 2381 . . . . . . . . . . . . . . . . . . . . . Thermal 73862 | . . . 45 . . . . . 635 123 711 3585 368 2370 267 1096 1753 2332 . 482 . 1793 160 809 80 1825 3546 1927 49955 Explosive 103 | . . . . . . . . . . . . . . 103 . . . . . . . . . . . . . . . Electromagnetic 5710 | . . . . . . . . . . . . . . . . . . . . . . . . . . 671 1113 . 3926 Impact . | . . . . . . . . . . . . . . . . . . . . . . . . . . . . . . Slashing . | . . . . . . . . . . . . . . . . . . . . . . . . . . . . . . Piercing . | . . . . . . . . . . . . . . . . . . . . . . . . . . . . . . Highest Corruption 23 | . . . . . . . . . 2 4 4 4 4 3 3 5 2 2 2 2 2 5 . . . 5 6 6 23 Average Corruption 9 | . . . . . . . . . 1 2 4 4 2 2 3 4 1 2 2 2 2 4 . . . 4 4 4 20 Corruption Purged 9 | . . . . . . . . . . . . . 4 . . . . . . . . . . . . . . 5 . Corruption Blocked . | . . . . . . . . . . . . . . . . . . . . . . . . . . . . . . Effects 486 | . . . . . . . . . 3 6 7 22 17 16 11 12 3 14 2 4 2 21 . . . 21 26 32 267 Message Errors 128 | . . . . . . . . . 1 1 . 5 4 3 5 6 1 6 . 1 1 5 . . . 5 6 9 69 Matter Fused 119 | . . . . . . . . . . 2 5 10 5 5 2 2 . 3 2 1 . 7 . . . 2 5 7 61 Heat Flow Errors 46 | . . . . . . . . . . 1 1 1 2 1 . 2 1 1 . . . . . . . 2 4 1 29 Energy Discharges 40 | . . . . . . . . . . . . 1 1 2 2 . . . . 1 . 3 . . . 6 2 1 21 Parts Rejected 3 | . . . . . . . . . . . . . . . . . . . . . . . . . . . . . 3 Parts Fused 7 | . . . . . . . . . . . . . . . . . . . . . . 1 . . . . . 1 5 Data Loss (minor) 55 | . . . . . . . . . . 2 1 3 1 2 2 . 1 2 . . . 3 . . . 4 4 5 25 Data Loss (major) 21 | . . . . . . . . . . . . . 1 . . . . . . . 1 1 . . . 1 . 1 16 Misfires 30 | . . . . . . . . . 1 . . 2 2 . . 2 . 1 . . . 1 . . . 1 4 2 14 Alerts 8 | . . . . . . . . . . . . . 1 2 . . . . . 1 . . . . . . 1 1 2 Misdirections 2 | . . . . . . . . . . . . . . . . . . . . . . . . . . . . . 2 Weapon Failures 27 | . . . . . . . . . 1 . . . . 1 . . . 1 . . . . . . . . . 4 20 Overload Shots . | . . . . . . . . . . . . . . . . . . . . . . . . . . . . . . Overflow Damage 9520 | . . . . . . . . . . . . . . 19 . . . . . . . 45 . 25 . 50 422 127 8832 Projectiles 6996 | . . . . . . . . . . . . . . . . . . . . . . 45 . 25 . 50 422 127 6327 Explosions 2524 | . . . . . . . . . . . . . . 19 . . . . . . . . . . . . . . 2505 Melee . | . . . . . . . . . . . . . . . . . . . . . . . . . . . . . . Knockbacks . | . . . . . . . . . . . . . . . . . . . . . . . . . . . . . . Impact . | . . . . . . . . . . . . . . . . . . . . . . . . . . . . . . Kinetic . | . . . . . . . . . . . . . . . . . . . . . . . . . . . . . . Secondary . | . . . . . . . . . . . . . . . . . . . . . . . . . . . . . . Self-Inflicted Damage 59 | . . . . . . . . . . . . . . . . . . . . . . . . . . . . . 59 Shots 2 | . . . . . . . . . . . . . . . . . . . . . . . . . . . . . 2 Rammed . | . . . . . . . . . . . . . . . . . . . . . . . . . . . . . . Targets Rammed . | . . . . . . . . . . . . . . . . . . . . . . . . . . . . . . Kicked . | . . . . . . . . . . . . . . . . . . . . . . . . . . . . . . Crushed . | . . . . . . . . . . . . . . . . . . . . . . . . . . . . . . Highest Temperature 446 | . 6 . 111 11 . 7 9 . 50 169 155 156 187 154 201 202 97 167 . 346 34 270 214 318 120 285 266 24 446 Average Temperature 77 | . 6 . 38 11 . 6 9 . 10 100 26 64 47 27 60 68 47 17 . 129 19 111 115 113 58 74 96 24 113 Received Heat Transfer 3470 | . 66 . 72 126 30 603 351 396 81 . 168 . 72 657 54 144 9 . 9 12 . 54 18 90 24 190 52 20 172 Effects 5 | . . . . . . . . . . . . . . . . . . . . . . . . . . . . . 5 Energy Bleed 2 | . . . . . . . . . . . . . . . . . . . . . . . . . . . . . 2 Interference 2 | . . . . . . . . . . . . . . . . . . . . . . . . . . . . . 2 Matter Decay 1 | . . . . . . . . . . . . . . . . . . . . . . . . . . . . . 1 Siege Activations 53 | . . . . . . . . . . . . . 2 4 . 4 6 . . . . 1 . . . 4 9 3 20 Total Turns 2418 | . . . . . . . . . . . . . 19 104 . 55 51 . . . . 6 . . . 48 105 40 1990 Longest Duration 782 | . . . . . . . . . . . . . 10 36 . 16 12 . . . . 6 . . . 18 25 31 782 Martial Activations . | . . . . . . . . . . . . . . . . . . . . . . . . . . . . . . Shielding Activations . | . . . . . . . . . . . . . . . . . . . . . . . . . . . . . . Robots Disrupted . | . . . . . . . . . . . . . . . . . . . . . . . . . . . . . . Combat Hostiles . | . . . . . . . . . . . . . . . . . . . . . . . . . . . . . . Robots Corrupted 23 | . . . . . . . . . . . . . . . . . . . . . . . . . . 4 3 . 16 Combat Hostiles 21 | . . . . . . . . . . . . . . . . . . . . . . . . . . 4 3 . 14 Parts Fried 57 | . . . . . . . . . . . . . . . . . . . . . . . . . . 9 8 . 40 Impact Corruptions . | . . . . . . . . . . . . . . . . . . . . . . . . . . . . . . Robots Melted 34 | . . . . . . . . . 1 . 1 . 1 4 2 1 1 . . . . . . . . 1 1 2 19 Combat Hostiles 28 | . . . . . . . . . 1 . 1 . 1 4 2 1 1 . . . . . . . . . 1 2 14 Parts Melted 140 | . . . . . . . . . 4 . 7 1 3 22 1 7 24 5 . . . 3 . 1 . 10 7 6 39 Heat Transferred 69660 | . . . 55 . . . . . 1554 296 1614 6993 592 4801 636 2404 3725 4568 . 444 . 1479 148 740 74 1554 2072 1110 34801 Parts Sabotaged 3 | . . . . . . . . . . . . . . . . . . . . . . . . . . . . . 3 Parts Stolen . | . . . . . . . . . . . . . . . . . . . . . . . . . . . . . . Parts Stripped . | . . . . . . . . . . . . . . . . . . . . . . . . . . . . . . Power Chain Reactions 4 | . . . . . . . . . . . . . . . . . . . . . . . . . . . . . 4 Alert | -11 -10 -10 -9 -9 -9 -8 -8 -8 -7 -7 -6 -6 -6 -6 -6 -6 -5 -5 -5 -5 -5 -5 -4 -4 -3 -3 -2 -2 -1 ------- Run | Yrd Mat Min Mat Sto Gar Mat Gar Mat Fac Gar Fac Was Fac Gar Fac Gar Fac Was Fac Gar Fac Gar Fac Gar Res Tes Res Qua Acc Maximum Alert Level 5 | . 1 . . . 1 1 3 2 . 1 . . . 2 1 1 . . . 2 1 3 2 3 2 . . . 5 Low Security (%) 58 | 100 99 100 100 100 61 32 . 5 100 53 100 100 100 33 80 86 100 100 100 35 . 3 . 14 . 100 100 100 27 Level 1 17 | . . . . . 38 67 38 80 . 46 . . . 30 19 13 . . . 5 100 18 . 6 55 . . . 11 Level 2 12 | . . . . . . . 32 14 . . . . . 36 . . . . . 59 . 26 100 66 44 . . . 21 Level 3 4 | . . . . . . . 29 . . . . . . . . . . . . . . 52 . 13 . . . . 4 Level 4 1 | . . . . . . . . . . . . . . . . . . . . . . . . . . . . . 8 Level 5 2 | . . . . . . . . . . . . . . . . . . . . . . . . . . . . . 13 High Security 2 | . . . . . . . . . . . . . . . . . . . . . . . . . . . . . 13 Max Security . | . . . . . . . . . . . . . . . . . . . . . . . . . . . . . . Sterilizations 1 | . . . . . . . . . . . . . . . . . . . . . . . . . . . . . 1 Peak Influence 3508 | . 206 64 39 139 273 377 873 427 189 205 162 19 23 477 249 200 123 17 102 651 341 861 616 907 510 164 97 56 3508 Initial 510 | . . 64 . . 71 132 234 425 189 84 107 19 . . 249 39 105 17 . 71 341 165 451 418 510 164 19 42 4 Average 353 | . 87 12 10 63 174 250 537 269 83 182 104 . 1 308 144 117 51 . 8 418 292 627 547 540 396 58 33 11 1000 Influence Increases 13200 | . 427 . 89 360 202 1132 689 633 242 121 148 . 67 517 75 171 352 . 132 660 6 816 227 1054 37 345 394 250 4054 Destroy 0b10 Robot/C 6870 | . 240 . 40 240 100 760 540 400 120 20 120 . 30 315 60 135 165 . 45 270 . 282 84 420 12 168 228 84 1992 Destroy 0b10 Robot/NC 536 | . 15 . 5 20 . 45 . 40 . . 4 . . . . . 32 . . . . . . . . 9 30 18 318 Destroy Leader 1258 | . 54 . 20 54 10 190 10 122 40 . 24 . 16 32 8 8 62 . 16 32 . 48 12 6 . 24 72 18 380 Allied During Kill 1027 | . . . . . . . 22 . . . . . . . 2 8 3 . 61 248 . 299 96 288 . . . . . Successful Hack 192 | . 10 . 24 13 42 4 7 5 28 . . . 13 . . 11 18 . . . . 6 . 9 2 . . . . Select Force Hacks 120 | . 60 . . . . 60 . . . . . . . . . . . . . . . . . . . . . . . Disable Machine 327 | . . . . 15 . . . 15 15 . . . . 24 . . 48 . . . . 12 . 27 9 54 . 45 63 Anti-Garrison Action 476 | . . . . . 50 . 100 . . 100 . . . 38 . . . . . 38 . . . 60 . . . . 90 Destroy Structure 1995 | . 3 . . 3 . 13 10 6 9 1 . . 8 24 5 9 12 . 10 72 6 169 26 235 14 54 64 76 1166 Partial Spotted 33 | . 15 . . . . . . . . . . . . . . . . . . . . . . . . . . 9 9 Lose Combat Pursuer 366 | . 30 . . 15 . 60 . 45 30 . . . . 84 . . 12 . . . . . 9 9 . 36 . . 36 Influence Decreases 9692 | . 260 167 89 250 39 1045 176 1090 538 36 298 55 67 40 496 27 502 50 30 111 420 192 490 745 651 603 353 317 555 Entered New Map 3211 | . . 103 . . 39 141 126 448 227 36 98 36 . . 228 17 95 33 . 31 310 72 410 180 397 129 16 34 5 Time Decay 5010 | . 250 64 89 209 . 624 . 482 311 . 190 19 67 . 238 . 382 17 10 . 110 . 80 . 254 474 337 283 520 Lost Part 240 | . 10 . . . . 130 10 10 . . 10 . . 20 10 10 10 . . . . . . . . . . . 20 Lost Ally 515 | . . . . . . . 40 . . . . . . 20 20 . 15 . 20 80 . 120 . 190 . . . . 10 Purge Threat 716 | . . . . 41 . 150 . 150 . . . . . . . . . . . . . . . 375 . . . . . Squads Dispatched 80 | . 4 . . . . 6 . 1 3 . 1 . 2 . . . 2 . 3 . . . . . . 5 6 3 44 Investigation 5 | . 2 . . . . 2 . 1 . . . . . . . . . . . . . . . . . . . . . Extermination 22 | . . . . . . . . . 1 . . . 2 . . . 1 . . . . . . . . 2 4 3 9 Reinforcement 28 | . 2 . . . . 4 . . 1 . 1 . . . . . 1 . 1 . . . . . . 2 2 . 14 Assault 18 | . . . . . . . . . . . . . . . . . . . . . . . . . . . . . 18 Garrison 7 | . . . . . . . . . 1 . . . . . . . . . 2 . . . . . . 1 . . 3 Intercept . | . . . . . . . . . . . . . . . . . . . . . . . . . . . . . . Searches Triggered . | . . . . . . . . . . . . . . . . . . . . . . . . . . . . . . Construction Impeded 10 | . . . . . . . . . . . . . . . . . . . . . . . . . . . 1 . 9 Haulers Reinforced 2 | . . . . . . . . . . . . . . . . . . . 1 . . . . . . . . . 1 Active Scanning Responses . | . . . . . . . . . . . . . . . . . . . . . . . . . . . . . . Cargo Convoy Interrupts . | . . . . . . . . . . . . . . . . . . . . . . . . . . . . . . Alert ID Control Effect 3 | . . . . . . . . . . . . . . . . . . . . . . 1 . 2 . . . . . Stealth | -11 -10 -10 -9 -9 -9 -8 -8 -8 -7 -7 -6 -6 -6 -6 -6 -6 -5 -5 -5 -5 -5 -5 -4 -4 -3 -3 -2 -2 -1 --------- Run | Yrd Mat Min Mat Sto Gar Mat Gar Mat Fac Gar Fac Was Fac Gar Fac Gar Fac Was Fac Gar Fac Gar Fac Gar Res Tes Res Qua Acc Distress Signals 14 | . 1 . . 2 . 3 . 2 . . . . . . 2 . 1 . . . . . . . . . . . 3 Communications Jammed . | . . . . . . . . . . . . . . . . . . . . . . . . . . . . . . Distress Signals . | . . . . . . . . . . . . . . . . . . . . . . . . . . . . . . Times Spotted 608 | . 18 . 3 17 5 56 28 31 8 1 11 6 6 25 5 9 20 6 11 12 . 26 7 39 3 25 25 16 189 Peak Tracking Total 15 | . 6 . 2 5 3 6 4 5 3 1 5 5 3 9 4 3 3 2 6 6 . 8 6 15 1 4 4 6 15 Tactical Retreats 25 | . 1 . . 1 . 4 . 3 2 . . . . 6 . . 1 . . . . . 1 1 . 3 . . 2 Traps | -11 -10 -10 -9 -9 -9 -8 -8 -8 -7 -7 -6 -6 -6 -6 -6 -6 -5 -5 -5 -5 -5 -5 -4 -4 -3 -3 -2 -2 -1 ------- Run | Yrd Mat Min Mat Sto Gar Mat Gar Mat Fac Gar Fac Was Fac Gar Fac Gar Fac Was Fac Gar Fac Gar Fac Gar Res Tes Res Qua Acc Traps Triggered 27 | . . . 2 . 2 . 6 2 . 3 2 . 2 2 1 . 1 . . . . 3 . . . . . . 1 Indirectly . | . . . . . . . . . . . . . . . . . . . . . . . . . . . . . . Trap Hack Attempts . | . . . . . . . . . . . . . . . . . . . . . . . . . . . . . . Triggered . | . . . . . . . . . . . . . . . . . . . . . . . . . . . . . . Disarmed . | . . . . . . . . . . . . . . . . . . . . . . . . . . . . . . Reprogrammed . | . . . . . . . . . . . . . . . . . . . . . . . . . . . . . . Reused . | . . . . . . . . . . . . . . . . . . . . . . . . . . . . . . Traps Extracted . | . . . . . . . . . . . . . . . . . . . . . . . . . . . . . . Installed . | . . . . . . . . . . . . . . . . . . . . . . . . . . . . . . Triggered . | . . . . . . . . . . . . . . . . . . . . . . . . . . . . . . Machines | -11 -10 -10 -9 -9 -9 -8 -8 -8 -7 -7 -6 -6 -6 -6 -6 -6 -5 -5 -5 -5 -5 -5 -4 -4 -3 -3 -2 -2 -1 ---------- Run | Yrd Mat Min Mat Sto Gar Mat Gar Mat Fac Gar Fac Was Fac Gar Fac Gar Fac Was Fac Gar Fac Gar Fac Gar Res Tes Res Qua Acc Machines Disabled 44 | . . . . 1 1 . 3 1 1 . . . . 3 . 1 4 . . 1 . 2 . 5 1 6 . 5 9 Max in Single Turn 1 | . . . . 1 1 . 1 1 1 . . . . 1 . . 1 . . 1 . 1 . 1 1 1 . 1 1 Garrison Access 9 | . . . . . . . . . . . . . . . . . . . . . . . . . . 1 2 1 5 Garrison Relay 7 | . . . . . 1 . 2 . . . . . . 1 . . . . . 1 . . . 2 . . . . . Machines Repaired . | . . . . . . . . . . . . . . . . . . . . . . . . . . . . . . Machines Dismantled . | . . . . . . . . . . . . . . . . . . . . . . . . . . . . . . Machines Sabotaged . | . . . . . . . . . . . . . . . . . . . . . . . . . . . . . . Overloaded Fab Kills . | . . . . . . . . . . . . . . . . . . . . . . . . . . . . . . Hacking | -11 -10 -10 -9 -9 -9 -8 -8 -8 -7 -7 -6 -6 -6 -6 -6 -6 -5 -5 -5 -5 -5 -5 -4 -4 -3 -3 -2 -2 -1 --------- Run | Yrd Mat Min Mat Sto Gar Mat Gar Mat Fac Gar Fac Was Fac Gar Fac Gar Fac Was Fac Gar Fac Gar Fac Gar Res Tes Res Qua Acc Machines Accessed 74 | . 6 1 3 5 3 7 2 2 3 . . . 5 . 3 1 1 . 3 1 2 1 1 1 2 4 4 4 9 Terminals 44 | . 4 1 2 4 3 4 2 2 1 . . . 3 . 1 1 . . 1 1 1 1 . 1 1 2 2 2 4 Fabricators . | . . . . . . . . . . . . . . . . . . . . . . . . . . . . . . Repair Stations . | . . . . . . . . . . . . . . . . . . . . . . . . . . . . . . Recycling Units 5 | . 2 . . . . 2 . . 1 . . . . . . . . . . . . . . . . . . . . Scanalyzers 9 | . . . 1 . . . . . . . . . 1 . 1 . 1 . 1 . . . . . 1 1 . 1 1 Garrison Access 16 | . . . . 1 . 1 . . 1 . . . 1 . 1 . . . 1 . 1 . 1 . . 1 2 1 4 Total Hacks 131 | . 16 5 8 13 4 12 5 5 5 . . . 9 . 6 1 2 . 4 1 3 2 1 1 3 5 7 4 9 Successful 68 | . 6 . 7 8 3 8 1 3 5 . . . 5 . 3 1 1 . 1 . 2 1 1 1 1 3 2 1 4 Failed 62 | . 10 5 1 5 1 4 4 2 . . . . 4 . 2 . 1 . 3 1 1 1 . . 2 2 5 3 5 Catastrophic 11 | . 1 . . . 1 . 2 . . . . . 2 . . . 1 . . 1 . . . . . . 1 . 2 Database Lockouts 1 | . . . . . . . . . . . . . . . 1 . . . . . . . . . . . . . . Manual 62 | . 16 5 4 1 1 8 . 4 1 . . . 6 . 3 . . . 1 . 2 . . . . 1 5 . 4 Terminals 91 | . 14 5 5 10 4 9 5 5 2 . . . 6 . 3 1 . . 1 1 2 2 . 1 2 2 5 2 4 Fabricators . | . . . . . . . . . . . . . . . . . . . . . . . . . . . . . . Repair Stations . | . . . . . . . . . . . . . . . . . . . . . . . . . . . . . . Recycling Units 6 | . 2 . . . . 2 . . 2 . . . . . . . . . . . . . . . . . . . . Scanalyzers 16 | . . . 3 . . . . . . . . . 2 . 2 . 2 . 2 . . . . . 1 2 . 1 1 Garrison Access 18 | . . . . 3 . 1 . . 1 . . . 1 . 1 . . . 1 . 1 . 1 . . 1 2 1 4 Terminal Hacks 25 | . 3 . 3 6 2 3 1 2 1 . . . 1 . . 1 . . . . . 1 . 1 . . . . . Part Schematic 1 | . . . . . . . . . . . . . 1 . . . . . . . . . . . . . . . . Robot Analysis 4 | . 2 . 1 1 . . . . . . . . . . . . . . . . . . . . . . . . . Prototype ID Bank 1 | . . . . . . 1 . . . . . . . . . . . . . . . . . . . . . . . Open Door 3 | . . . . 1 . . 1 . . . . . . . . . . . . . . 1 . . . . . . . Emergency Access Points 2 | . . . . . . . . . . . . . . . . 1 . . . . . . . 1 . . . . . Recycling Unit Index 1 | . 1 . . . . . . . . . . . . . . . . . . . . . . . . . . . . Unreport Threat 3 | . . . . 1 . 1 . 1 . . . . . . . . . . . . . . . . . . . . . Surveillance Status 1 | . . . . 1 . . . . . . . . . . . . . . . . . . . . . . . . . Registered Prototypes 2 | . . . 1 1 . . . . . . . . . . . . . . . . . . . . . . . . . Zone Layout 5 | . . . 1 1 . 1 . 1 1 . . . . . . . . . . . . . . . . . . . . Garrison Registry 1 | . . . . . 1 . . . . . . . . . . . . . . . . . . . . . . . . Security Stations 1 | . . . . . 1 . . . . . . . . . . . . . . . . . . . . . . . . Fabricator Hacks . | . . . . . . . . . . . . . . . . . . . . . . . . . . . . . . Repair Station Hacks . | . . . . . . . . . . . . . . . . . . . . . . . . . . . . . . Recycling Unit Hacks 2 | . . . . . . . . . 2 . . . . . . . . . . . . . . . . . . . . Retrieve Components 2 | . . . . . . . . . 2 . . . . . . . . . . . . . . . . . . . . Scanalyzer 10 | . . . 3 . . . . . . . . . 2 . 1 . 1 . . . . . . . 1 2 . . . Retrieve Study 10 | . . . 3 . . . . . . . . . 2 . 1 . 1 . . . . . . . 1 2 . . . Garrison Access Hacks 16 | . . . . 1 . 1 . . 1 . . . 1 . 1 . . . 1 . 1 . 1 . . 1 2 1 4 Unlock Access 8 | . . . . 1 . 1 . . 1 . . . 1 . 1 . . . 1 . 1 . 1 . . . . . . Seal Access 8 | . . . . . . . . . . . . . . . . . . . . . . . . . . 1 2 1 4 Unauthorized Hacks 15 | . 3 . 1 1 1 4 . 1 1 . . . 1 . 1 . . . . . 1 . . . . . . . . Terminals 11 | . 1 . 1 1 1 2 . 1 1 . . . 1 . 1 . . . . . 1 . . . . . . . . Botnet 11 | . 1 . 1 1 1 2 . 1 1 . . . 1 . 1 . . . . . 1 . . . . . . . . Fabricators . | . . . . . . . . . . . . . . . . . . . . . . . . . . . . . . Repair Stations . | . . . . . . . . . . . . . . . . . . . . . . . . . . . . . . Recycling Units 4 | . 2 . . . . 2 . . . . . . . . . . . . . . . . . . . . . . . Tunnel 4 | . 2 . . . . 2 . . . . . . . . . . . . . . . . . . . . . . . Scanalyzers . | . . . . . . . . . . . . . . . . . . . . . . . . . . . . . . Garrison Access . | . . . . . . . . . . . . . . . . . . . . . . . . . . . . . . Data Cores Recovered 2 | . . . . . . . . 1 . . . . . . . . . . . . . . . . . 1 . . . Used . | . . . . . . . . . . . . . . . . . . . . . . . . . . . . . . Hacking Detections 41 | . 4 1 1 2 2 2 2 1 . . . . 4 . 1 1 1 . 3 1 1 1 . . 1 2 2 3 5 Full Trace Events . | . . . . . . . . . . . . . . . . . . . . . . . . . . . . . . Feedback Events . | . . . . . . . . . . . . . . . . . . . . . . . . . . . . . . Feedback Blocked . | . . . . . . . . . . . . . . . . . . . . . . . . . . . . . . Robot Schematics Acquired . | . . . . . . . . . . . . . . . . . . . . . . . . . . . . . . Robots Built . | . . . . . . . . . . . . . . . . . . . . . . . . . . . . . . Authchips . | . . . . . . . . . . . . . . . . . . . . . . . . . . . . . . Time . | . . . . . . . . . . . . . . . . . . . . . . . . . . . . . . Total Robot Build Rating . | . . . . . . . . . . . . . . . . . . . . . . . . . . . . . . Part Schematics Acquired 1 | . . . . . . . . . . . . . 1 . . . . . . . . . . . . . . . . Parts Built . | . . . . . . . . . . . . . . . . . . . . . . . . . . . . . . Authchips . | . . . . . . . . . . . . . . . . . . . . . . . . . . . . . . Time . | . . . . . . . . . . . . . . . . . . . . . . . . . . . . . . Total Part Build Rating . | . . . . . . . . . . . . . . . . . . . . . . . . . . . . . . Part Studies Acquired 10 | . . . 3 . . . . . . . . . 2 . 1 . 1 . . . . . . . 1 2 . . . Parts Repaired . | . . . . . . . . . . . . . . . . . . . . . . . . . . . . . . Time . | . . . . . . . . . . . . . . . . . . . . . . . . . . . . . . Parts Recycled . | . . . . . . . . . . . . . . . . . . . . . . . . . . . . . . Recycled Matter . | . . . . . . . . . . . . . . . . . . . . . . . . . . . . . . Retrieved Matter . | . . . . . . . . . . . . . . . . . . . . . . . . . . . . . . Retrieved Components . | . . . . . . . . . . . . . . . . . . . . . . . . . . . . . . Parts Scanalyzed . | . . . . . . . . . . . . . . . . . . . . . . . . . . . . . . Part Schematics Acquired . | . . . . . . . . . . . . . . . . . . . . . . . . . . . . . . Parts Damaged . | . . . . . . . . . . . . . . . . . . . . . . . . . . . . . . Bothacking | -11 -10 -10 -9 -9 -9 -8 -8 -8 -7 -7 -6 -6 -6 -6 -6 -6 -5 -5 -5 -5 -5 -5 -4 -4 -3 -3 -2 -2 -1 ------------ Run | Yrd Mat Min Mat Sto Gar Mat Gar Mat Fac Gar Fac Was Fac Gar Fac Gar Fac Was Fac Gar Fac Gar Fac Gar Res Tes Res Qua Acc Used RIF Installer 9 | . . . . . 1 . 1 . . 2 . . . 1 . 1 . . . 1 . 1 . 1 . . . . . Coupler Efficiency 1 | . . . . . . . . . . . . . . . . . . . . . . . . 1 . . . . . Command Fork 1 | . . . . . . . 1 . . . . . . . . . . . . . . . . . . . . . . Threat Obfuscator 2 | . . . . . . . . . . 1 . . . . . . . . . . . 1 . . . . . . . Zone Cloak 1 | . . . . . . . . . . . . . . 1 . . . . . . . . . . . . . . . Watcher Feeds 1 | . . . . . . . . . . . . . . . . 1 . . . . . . . . . . . . . Patrol Navigation 1 | . . . . . . . . . . 1 . . . . . . . . . . . . . . . . . . . Alert ID Control 1 | . . . . . . . . . . . . . . . . . . . . 1 . . . . . . . . . Robots Hacked 43 | . . . . . . . . . . . 1 5 1 1 2 . 2 5 2 1 . 2 . 5 2 5 3 1 5 Non-combat 19 | . . . . . . . . . . . 1 . 1 . 1 . 2 . 1 . . . . 1 1 2 3 1 5 Combat 24 | . . . . . . . . . . . . 5 . 1 1 . . 5 1 1 . 2 . 4 1 3 . . . Robot Hacks Applied 49 | . . . . . . . . . . . 1 5 2 1 2 . 2 5 2 1 . 2 . 7 3 7 3 1 5 parse_system 1 | . . . . . . . . . . . . . 1 . . . . . . . . . . . . . . . . find_chute 2 | . . . . . . . . . . . 1 . . . . . 1 . . . . . . . . . . . . drop_inventory 14 | . . . . . . . . . . . . . 1 . 1 . 1 . 1 . . . . . 1 1 3 1 4 purge_threat 3 | . . . . . . . . . . . . . . . . . . . . . . . . 3 . . . . . disable_scanner 2 | . . . . . . . . . . . . . . . . . . . . . . . . . . 2 . . . report_analyses 2 | . . . . . . . . . . . . . . . . . . . . . . . . . . 2 . . . ignore_targets 10 | . . . . . . . . . . . . 5 . . . . . 5 . . . . . . . . . . . wipe_record 1 | . . . . . . . . . . . . . . . . . . . . . . . . . 1 . . . . go_dormant 1 | . . . . . . . . . . . . . . . . . . . . . . . . . 1 . . . . overwrite_iff 6 | . . . . . . . . . . . . . . . . . . . . 1 . . . 4 . 1 . . . formatsys_low 2 | . . . . . . . . . . . . . . . . . . . . . . . . . . 1 . . 1 formatsys_high 5 | . . . . . . . . . . . . . . 1 1 . . . 1 . . 2 . . . . . . . Relay Couplers Released 45 | . . . . . 5 . 6 . . 4 . . . 4 . . . . . 4 . 4 . 10 . . . 1 7 Machine Destruction 33 | . . . . . 5 . 6 . . . . . . 4 . . . . . 4 . . . 10 . . . 1 3 Programmers 12 | . . . . . . . . . . 4 . . . . . . . . . . . 4 . . . . . . 4 Attached 12 | . . . . . . . . . . . . 1 . 1 1 . 1 . 1 1 . . . 3 1 . . 1 1 Fabnet Peak Effective % . | . . . . . . . . . . . . . . . . . . . . . . . . . . . . . . Robots Rewired 4 | . . . . . . . . . . . . . . . . 1 . . . . . 2 . 1 . . . . . Allies Hacked 4 | . . . . . . . . . . . . . . . . . . . . 1 . 2 . . . . 1 . . Hacks Repelled . | . . . . . . . . . . . . . . . . . . . . . . . . . . . . . . Allies | -11 -10 -10 -9 -9 -9 -8 -8 -8 -7 -7 -6 -6 -6 -6 -6 -6 -5 -5 -5 -5 -5 -5 -4 -4 -3 -3 -2 -2 -1 -------- Run | Yrd Mat Min Mat Sto Gar Mat Gar Mat Fac Gar Fac Was Fac Gar Fac Gar Fac Was Fac Gar Fac Gar Fac Gar Res Tes Res Qua Acc Total Allies 47 | . . . . . . . 2 . . . . . . 1 1 1 . 18 2 3 . 9 . 7 . 2 . . 1 Largest Group 20 | . . . . . . . 2 . . . . . . 1 1 1 1 18 20 17 11 13 11 12 . 1 1 . 1 Highest-Rated Group 758 | . . . . . . . 62 . . . . . . 32 32 116 116 656 714 639 521 758 674 691 . 47 28 . 30 Highest-Rated Ally 148 | . . . . . . . 31 . . . . . . 32 32 116 116 50 50 95 95 148 148 148 . 47 28 . 30 Total Orders 9 | . . . . . . . . . . . . . . . . . . . . . . 2 . 5 . 1 . . 1 STAY 3 | . . . . . . . . . . . . . . . . . . . . . . 1 . 2 . . . . . FOLLOW 2 | . . . . . . . . . . . . . . . . . . . . . . 1 . 1 . . . . . GUARD 1 | . . . . . . . . . . . . . . . . . . . . . . . . 1 . . . . . AID 3 | . . . . . . . . . . . . . . . . . . . . . . . . 1 . 1 . . 1 Ally Attacks 417 | . . . . . . . 39 . . . . . . 1 3 4 5 . 58 72 . 85 18 129 . 3 . . . Total Damage 14662 | . . . . . . . 575 . . . . . . 50 88 245 361 . 1165 3550 . 2920 634 5012 . 62 . . . Kills 91 | . . . . . . . 5 . . . . . . . 1 1 3 . 5 21 . 16 6 33 . . . . . Allies Corrupted 1 | . . . . . . . . . . . . . . . . . . . . . . 1 . . . . . . . Allies Melted 1 | . . . . . . . . . . . . . . 1 . . . . . . . . . . . . . . . Intel | -11 -10 -10 -9 -9 -9 -8 -8 -8 -7 -7 -6 -6 -6 -6 -6 -6 -5 -5 -5 -5 -5 -5 -4 -4 -3 -3 -2 -2 -1 ------- Run | Yrd Mat Min Mat Sto Gar Mat Gar Mat Fac Gar Fac Was Fac Gar Fac Gar Fac Was Fac Gar Fac Gar Fac Gar Res Tes Res Qua Acc Active Infowar (turns) 15916 | . . . . . . . . 237 79 . 280 259 919 172 395 214 713 170 169 . 103 2 177 762 525 1490 1729 1338 6183 Optics 6182 | . . . . . . . . . . . . . . . . . . . . . . . . . . . . . 6182 Sensors 9908 | . . . . . . . . . . . . 259 885 5 395 7 713 170 169 . 103 2 177 34 525 1490 1669 1338 1967 Traps 8882 | . . . . . . . . . 79 . 280 . 608 172 194 207 173 . . . . . . 728 89 1066 1695 1075 2516 Jamming 349 | . . . . . . . . 237 78 . . . 34 . . . . . . . . . . . . . . . . Robot Analysis Total 4 | . 2 . 1 1 . . . . . . . . . . . . . . . . . . . . . . . . . Derelict Logs Recovered 2 | . . 2 . . . . . . . . . . . . . . . . . . . . . . . . . . . Drone Launches . | . . . . . . . . . . . . . . . . . . . . . . . . . . . . . . Drone Recoveries . | . . . . . . . . . . . . . . . . . . . . . . . . . . . . . . Exploration | -11 -10 -10 -9 -9 -9 -8 -8 -8 -7 -7 -6 -6 -6 -6 -6 -6 -5 -5 -5 -5 -5 -5 -4 -4 -3 -3 -2 -2 -1 ------------- Run | Yrd Mat Min Mat Sto Gar Mat Gar Mat Fac Gar Fac Was Fac Gar Fac Gar Fac Was Fac Gar Fac Gar Fac Gar Res Tes Res Qua Acc Turns Passed 28757 | 77 914 390 271 525 459 2135 1109 1258 781 423 383 841 947 804 519 602 947 1110 298 297 220 896 178 855 541 1521 1896 1377 6183 Spaces Moved 12460 | 42 581 351 176 176 213 801 466 412 265 244 186 338 477 341 281 284 421 562 173 150 120 421 87 429 273 645 947 677 1921 Core 2 | 2 . . . . . . . . . . . . . . . . . . . . . . . . . . . . . Treads 10814 | 40 74 . . 142 213 801 149 412 265 20 151 338 477 341 281 284 421 562 173 150 120 421 87 429 273 645 947 677 1921 Legs . | . . . . . . . . . . . . . . . . . . . . . . . . . . . . . . Wheels 1644 | . 507 351 176 34 . . 317 . . 224 35 . . . . . . . . . . . . . . . . . . Hover . | . . . . . . . . . . . . . . . . . . . . . . . . . . . . . . Flight . | . . . . . . . . . . . . . . . . . . . . . . . . . . . . . . Fastest Speed 50 | 50 110 110 85 115 200 200 145 200 250 145 145 160 160 160 160 160 160 160 166 166 166 166 166 166 166 160 155 155 150 Average Speed 167 | 154 127 110 109 183 200 206 183 225 250 155 165 164 160 160 160 160 160 160 166 166 166 181 166 166 166 163 157 155 164 Slowest Speed 285 | 160 160 110 115 200 200 237 285 250 250 250 170 170 160 160 160 160 160 166 166 166 166 240 166 166 166 166 160 155 250 Overloaded Moves . | . . . . . . . . . . . . . . . . . . . . . . . . . . . . . . Propulsion Burnouts . | . . . . . . . . . . . . . . . . . . . . . . . . . . . . . . Robots Hopped . | . . . . . . . . . . . . . . . . . . . . . . . . . . . . . . Potential Cave-ins . | . . . . . . . . . . . . . . . . . . . . . . . . . . . . . . Cave-ins Triggered . | . . . . . . . . . . . . . . . . . . . . . . . . . . . . . . Exploration Rate (%) 41 | 3 93 93 26 28 35 56 58 60 8 42 8 83 14 43 11 44 18 96 13 34 4 54 4 61 13 84 27 66 64 Regions Visited 29 Branch Regions 4 Pre-discovered Areas 4 | . 2 . . . . 2 . . . . . . . . . . . . . . . . . . . . . . . Known Exits Taken 13 | . . . 1 1 . 1 . . 1 . . . 1 . 1 . . . 1 . 1 . 1 . 1 1 1 1 . Unknown Exits Taken 4 | 1 1 1 . . . . . 1 . . . . . . . . . . . . . . . . . . . . . Scrap Searched . | . . . . . . . . . . . . . . . . . . . . . . . . . . . . . . Spaces Dug 127 | . . . . 1 . . . 1 . 1 . . 4 . 1 . . . . 2 3 2 . 2 5 13 9 22 61 Terrain Destroyed 893 | . . . . 1 . 9 . 1 9 2 . . 7 4 4 . . . . 3 3 15 2 7 7 26 30 39 724 Melee . | . . . . . . . . . . . . . . . . . . . . . . . . . . . . . . Projectile 276 | . . . . 1 . . . 1 . 2 . . 7 . 4 . . . . 3 3 15 2 7 7 26 30 39 129 AOE 617 | . . . . . . 9 . . 9 . . . . 4 . . . . . . . . . . . . . . 595 Terrain Rammed . | . . . . . . . . . . . . . . . . . . . . . . . . . . . . . . Walls Destroyed . | . . . . . . . . . . . . . . . . . . . . . . . . . . . . . . Machines Disabled . | . . . . . . . . . . . . . . . . . . . . . . . . . . . . . . Actions | -11 -10 -10 -9 -9 -9 -8 -8 -8 -7 -7 -6 -6 -6 -6 -6 -6 -5 -5 -5 -5 -5 -5 -4 -4 -3 -3 -2 -2 -1 --------- Run | Yrd Mat Min Mat Sto Gar Mat Gar Mat Fac Gar Fac Was Fac Gar Fac Gar Fac Was Fac Gar Fac Gar Fac Gar Res Tes Res Qua Acc Total 18525 | 52 689 355 229 309 229 1096 603 629 353 279 227 478 632 490 327 391 605 694 181 182 138 501 116 535 349 1018 1233 922 4683 Wait 3611 | . 51 5 19 64 4 112 20 107 48 8 3 14 109 62 10 50 109 43 . 16 12 37 24 51 40 193 130 170 2100 Move 12439 | 41 580 350 175 176 212 801 465 411 265 243 186 337 477 340 281 283 421 561 173 149 120 420 86 428 272 644 946 676 1920 Hop . | . . . . . . . . . . . . . . . . . . . . . . . . . . . . . . Pick Up 229 | 5 16 . 12 9 . 24 6 13 8 4 7 12 5 8 4 11 5 6 1 1 1 1 2 1 8 24 12 3 20 Fast Attach 84 | 5 4 . 3 2 . 8 . 4 . 1 2 6 1 1 . 1 3 8 . . . . . 2 . 7 6 2 18 Attach 78 | 1 . . 4 3 . 15 1 2 2 . 3 1 . 3 2 3 4 2 . 1 . . 2 2 2 6 5 1 13 Detach 19 | . 2 . . 1 . 2 . . . . . . 1 1 . . 1 . . . . . . . . 7 2 . 2 Swap 397 | . 3 . 1 9 1 13 33 15 9 4 5 8 18 14 16 10 19 9 4 4 1 8 . 15 10 46 58 13 51 Drop 278 | . 2 . 3 11 1 26 9 22 7 5 6 27 5 6 2 13 4 21 1 1 1 3 . 6 6 33 18 5 34 Fire 1362 | . 31 . 12 34 9 95 58 55 14 10 15 73 16 55 12 20 39 44 2 9 3 29 2 30 11 57 56 52 519 Melee . | . . . . . . . . . . . . . . . . . . . . . . . . . . . . . . Ram . | . . . . . . . . . . . . . . . . . . . . . . . . . . . . . . Kick . | . . . . . . . . . . . . . . . . . . . . . . . . . . . . . . Crush . | . . . . . . . . . . . . . . . . . . . . . . . . . . . . . . Escape Stasis 23 | . . . . . 2 . 11 . . . . . . . . . . . . 1 . 3 . . . . . . 6 Rewire 5 | . . . . . . . . . . 4 . . . . . . . . . . . . . . . 1 . . . Trap . | . . . . . . . . . . . . . . . . . . . . . . . . . . . . . . Miscellaneous . | . . . . . . . . . . . . . . . . . . . . . . . . . . . . . . Route ------- -11/Scrapyard -10/Materials (discovered 5 exits: *Mat x3 / *Min x2) -10/Mines (discovered 3 exits: *Mat x2 / Sub) -9/Materials (discovered 4 exits: *Mat x2 / *Sto x2) -9/Storage -9/Garrison (discovered 3 exits: *Mat x3) -8/Materials (discovered 2 exits: *Fac / Gar) -8/Garrison (discovered 3 exits: *Mat x3) -8/Materials (discovered 2 exits: *Fac x2) -7/Factory -7/Garrison -6/Factory -6/Waste -6/Factory (discovered 3 exits: *Fac x2 / Gar) -6/Garrison -6/Factory -6/Garrison -5/Factory -5/Waste -5/Factory -5/Garrison -5/Factory -5/Garrison (discovered 2 exits: *Fac x2) -4/Factory -4/Garrison (discovered 2 exits: *Res x2) -3/Research -3/Testing -2/Research -2/Quarantine -1/Access To Epsilon Eridani History --------- Turn | Location | Event 24 | -11/Scrapyard | Discovered new exit (range 15) 78 | -11/Scrapyard | Entered Materials 261 | -10/Materials | Discovered new exit (range 7) 306 | -10/Materials | Build established: Mutant 542 | -10/Materials | Discovered new exit (range 16) 605 | -10/Materials | Discovered new exit (range 5) 817 | -10/Materials | Discovered new exit (range 15) 961 | -10/Materials | Discovered new exit (range 16) 992 | -10/Materials | Entered Mines 997 | -10/Mines | Met a Derelict bent on vengeance 997 | -10/Mines | Identified exit to Subcaves 1033 | -10/Mines | Learned location of 2 exits from Materials 1166 | -10/Mines | Discovered new exit (range 13) 1363 | -10/Mines | Discovered new exit (range 8) 1382 | -10/Mines | Entered Materials 1382 | -9/Materials | Evolved 2 slots: Propulsion x1, Weapon x1 1383 | -9/Materials | Identified exit to Materials 1383 | -9/Materials | Identified exit to Storage 1503 | -9/Materials | Discovered exit to Materials (range 9) 1503 | -9/Materials | Discovered exit to Storage (range 15) 1653 | -9/Materials | Entered Storage 2001 | -9/Storage | Build established: Gunner 2178 | -9/Storage | Identified exit to Garrison 2178 | -9/Storage | Entered Garrison 2190 | -9/Garrison | Learned Materials security intel 2284 | -9/Garrison | Installed Relay Interface Framework 2318 | -9/Garrison | Triggered checkpoint 2350 | -9/Garrison | Garrison Relay disabled 2441 | -9/Garrison | Triggered checkpoint 2603 | -9/Garrison | Discovered exit to Materials (range 11) 2615 | -9/Garrison | Discovered exit to Materials (range 11) 2615 | -9/Garrison | Discovered exit to Materials (range 81) 2615 | -9/Garrison | Discovered exit to Materials (range 94) 2637 | -9/Garrison | Entered Materials 2637 | -8/Materials | Evolved 2 slots: Propulsion x1, Utility x1 2922 | -8/Materials | Build established: Scavenger-Tank 3801 | -8/Materials | Discovered new exit (range 16) 4029 | -8/Materials | Build established: Scavenger-Gunner 4632 | -8/Materials | Lost 6 parts (4n2w) 4772 | -8/Materials | Identified exit to Garrison 4772 | -8/Materials | Entered Garrison 4886 | -8/Garrison | Triggered checkpoint 4981 | -8/Garrison | Garrison Relay disabled 5023 | -8/Garrison | Rescued a captive Derelict 5024 | -8/Garrison | Rescued a captive Derelict 5192 | -8/Garrison | Triggered checkpoint 5231 | -8/Garrison | Discovered new exit (range 5) 5294 | -8/Garrison | Triggered checkpoint 5382 | -8/Garrison | Discovered new exit (range 10) 5544 | -8/Garrison | Triggered checkpoint 5668 | -8/Garrison | Triggered checkpoint 5702 | -8/Garrison | Triggered checkpoint 5743 | -8/Garrison | Discovered new exit (range 10) 5774 | -8/Garrison | Triggered checkpoint 5791 | -8/Garrison | Core integrity fell below 50% 5812 | -8/Garrison | Garrison Relay disabled 5858 | -8/Garrison | Expanded RIF knowledge: Command Fork 5881 | -8/Garrison | Entered Materials 6359 | -8/Materials | Build established: Scavenger-Tank 6690 | -8/Materials | Discovered new exit (range 13) 7101 | -8/Materials | Discovered new exit (range 15) 7129 | -8/Materials | Build established: Tank 7139 | -8/Materials | Entered Factory 7139 | -7/Factory | Evolved 2 slots: Utility x2 7451 | -7/Factory | Build established: Skirmisher 7822 | -7/Factory | Garrison activated, responded to threat 7920 | -7/Factory | Identified exit to Garrison 7920 | -7/Factory | Entered Garrison 7920 | -7/Garrison | Discovered recently destroyed garrison 7935 | -7/Garrison | Rescued a captive Derelict 7938 | -7/Garrison | Rescued a captive Derelict 8122 | -7/Garrison | Build established: Tank 8216 | -7/Garrison | Expanded RIF knowledge: Patrol Navigation 8266 | -7/Garrison | Expanded RIF knowledge: Threat Obfuscation 8316 | -7/Garrison | Discovered new exit (range 13) 8343 | -7/Garrison | Entered Factory 8343 | -6/Factory | Evolved 2 slots: Propulsion x2 8726 | -6/Factory | Manually triggered Chute Trap 8726 | -6/Factory | Sucked down chute 8726 | -6/Factory | Entered Waste 8747 | -6/Waste | Build established: Skirmisher 8819 | -6/Waste | Spotted C-40 Crusher 8829 | -6/Waste | Spotted C-40 Crusher 8831 | -6/Waste | Spotted C-40 Crusher 8831 | -6/Waste | Spotted C-40 Crusher 8835 | -6/Waste | Spotted C-40 Crusher 8838 | -6/Waste | Spotted C-40 Crusher 9036 | -6/Waste | Destroyed C-40 Crusher 9256 | -6/Waste | Destroyed C-40 Crusher 9286 | -6/Waste | Destroyed C-40 Crusher 9326 | -6/Waste | Destroyed C-40 Crusher 9414 | -6/Waste | Destroyed C-40 Crusher 9536 | -6/Waste | Discovered new exit (range 12) 9553 | -6/Waste | Build established: Scavenger-Skirmisher 9565 | -6/Waste | Identified exit to Factory 9567 | -6/Waste | Entered Factory 9644 | -6/Factory | Discovered new exit (range 4) 9649 | -6/Factory | Identified exit to Factory 10384 | -6/Factory | Discovered exit to Factory (range 6) 10514 | -6/Factory | Identified exit to Garrison 10514 | -6/Factory | Entered Garrison 10592 | -6/Garrison | Destroyed 7 combat bots 10730 | -6/Garrison | Spotted B-75 Beast 10851 | -6/Garrison | Build established: Scavenger-Tank 10864 | -6/Garrison | Destroyed 7 combat bots 10919 | -6/Garrison | Garrison Relay disabled 11028 | -6/Garrison | Triggered checkpoint 11103 | -6/Garrison | Triggered checkpoint 11138 | -6/Garrison | Destroyed B-75 Beast 11222 | -6/Garrison | Build established: Bothacker-Tank 11281 | -6/Garrison | Expanded RIF knowledge: Zone Cloak 11304 | -6/Garrison | Discovered new exit (range 10) 11316 | -6/Garrison | Identified exit to Factory 11318 | -6/Garrison | Entered Factory 11576 | -6/Factory | Spotted B-75 Beast 11817 | -6/Factory | Central database locked down 11837 | -6/Factory | Identified exit to Garrison 11837 | -6/Factory | Entered Garrison 12073 | -6/Garrison | Triggered checkpoint 12122 | -6/Garrison | Spotted B-90 Cyclops 12126 | -6/Garrison | Rewired B-86 Titan 12140 | -6/Garrison | Destroyed B-90 Cyclops 12267 | -6/Garrison | Triggered checkpoint 12292 | -6/Garrison | Build established: Botlord-Tank 12390 | -6/Garrison | Discovered exit to Factory (range 10) 12409 | -6/Garrison | Expanded RIF knowledge: Watcher Feeds 12439 | -6/Garrison | Entered Factory 12439 | -5/Factory | Accompanied by 1 ally 12439 | -5/Factory | Evolved 2 slots: Power x1, Utility x1 12843 | -5/Factory | Spotted B-75 Beast 12892 | -5/Factory | Destroyed B-75 Beast 13386 | -5/Factory | Manually triggered Chute Trap 13386 | -5/Factory | Sucked down chute 13386 | -5/Factory | Entered Waste 13404 | -5/Waste | Spotted C-40 Crusher 13409 | -5/Waste | Spotted C-40 Crusher 13431 | -5/Waste | Spotted C-40 Crusher 13474 | -5/Waste | Spotted C-40 Crusher 13499 | -5/Waste | Spotted C-40 Crusher 13545 | -5/Waste | Spotted C-40 Crusher 13558 | -5/Waste | Destroyed C-40 Crusher 13578 | -5/Waste | Destroyed C-40 Crusher 13651 | -5/Waste | Destroyed C-40 Crusher 13710 | -5/Waste | Destroyed C-40 Crusher 13789 | -5/Waste | Destroyed C-40 Crusher 13835 | -5/Waste | Discovered new exit (range 15) 13946 | -5/Waste | Destroyed C-40 Crusher 14131 | -5/Waste | Warlord forces began an assault 14481 | -5/Waste | Identified exit to Factory 14496 | -5/Waste | Entered Factory 14496 | -5/Factory | Accompanied by 18 allies 14794 | -5/Factory | Identified exit to Garrison 14794 | -5/Factory | Entered Garrison 14794 | -5/Garrison | Accompanied by 17 allies 14812 | -5/Garrison | Lost 3 allies 14824 | -5/Garrison | Triggered checkpoint 14837 | -5/Garrison | Garrison Relay disabled 14902 | -5/Garrison | Spotted B-75 Beast 14910 | -5/Garrison | Destroyed B-75 Beast 14950 | -5/Garrison | Triggered checkpoint 14950 | -5/Garrison | Triggered checkpoint 14964 | -5/Garrison | Triggered checkpoint 14977 | -5/Garrison | Lost 4 allies 14997 | -5/Garrison | Expanded RIF knowledge: Alert ID Control 15023 | -5/Garrison | Discovered new exit (range 10) 15037 | -5/Garrison | Found embedded Infiltrators 15070 | -5/Garrison | Identified exit to Factory 15091 | -5/Garrison | Entered Factory 15091 | -5/Factory | Accompanied by 11 allies 15299 | -5/Factory | Identified exit to Garrison 15311 | -5/Factory | Entered Garrison 15311 | -5/Garrison | Accompanied by 11 allies 15329 | -5/Garrison | Triggered checkpoint 15366 | -5/Garrison | Found embedded Infiltrators 15386 | -5/Garrison | Lost 4 allies 15498 | -5/Garrison | Triggered checkpoint 15505 | -5/Garrison | Spotted B-75 Beast 15509 | -5/Garrison | Triggered checkpoint 15525 | -5/Garrison | Allies destroyed B-75 Beast 15532 | -5/Garrison | Triggered checkpoint 15566 | -5/Garrison | Lost 3 allies 15601 | -5/Garrison | Discovered new exit (range 10) 15606 | -5/Garrison | Spotted B-75 Beast 15621 | -5/Garrison | Allies destroyed B-75 Beast 15626 | -5/Garrison | Rewired B-90 Cyclops 15635 | -5/Garrison | Rewired B-86 Titan 15647 | -5/Garrison | Found Quantum Capacitor 15722 | -5/Garrison | Rescued a captive Derelict 15726 | -5/Garrison | Rescued a captive Derelict 15733 | -5/Garrison | Triggered checkpoint 15894 | -5/Garrison | Identified exit to Factory 15924 | -5/Garrison | Build established: Bothacker-Tank 16091 | -5/Garrison | Triggered checkpoint 16155 | -5/Garrison | Discovered exit to Factory (range 11) 16170 | -5/Garrison | Expanded RIF knowledge: Threat Obfuscation 16207 | -5/Garrison | Entered Factory 16207 | -4/Factory | Accompanied by 11 allies 16207 | -4/Factory | Evolved 2 slots: Power x1, Utility x1 16366 | -4/Factory | Identified exit to Garrison 16385 | -4/Factory | Entered Garrison 16385 | -4/Garrison | Accompanied by 11 allies 16463 | -4/Garrison | Triggered checkpoint 16465 | -4/Garrison | H-XX Assembler disabled 16559 | -4/Garrison | Garrison Relay disabled 16625 | -4/Garrison | Spotted B-86 Titan 16632 | -4/Garrison | Triggered checkpoint 16635 | -4/Garrison | Triggered checkpoint 16676 | -4/Garrison | Lost 3 allies 16731 | -4/Garrison | Discovered new exit (range 11) 16745 | -4/Garrison | Rewired B-86 Titan 16773 | -4/Garrison | Build established: Scavenger-Tank 16809 | -4/Garrison | Triggered checkpoint 16842 | -4/Garrison | Garrison Relay disabled 16920 | -4/Garrison | Identified exit to Research 17025 | -4/Garrison | Triggered checkpoint 17103 | -4/Garrison | Triggered checkpoint 17137 | -4/Garrison | Expanded RIF knowledge: Coupler Efficiency 17179 | -4/Garrison | Lost 4 allies 17222 | -4/Garrison | Discovered exit to Research (range 12) 17240 | -4/Garrison | Entered Research 17240 | -3/Research | Evolved 2 slots: Utility x2 17562 | -3/Research | Found Exp. Thermal Shield 17633 | -3/Research | Found Prototype Device 17641 | -3/Research | Identified Exp. Shield Generator 17774 | -3/Research | Discovered new exit (range 3) 17778 | -3/Research | Identified exit to Testing 17781 | -3/Research | Entered Testing 17808 | -3/Testing | Found Prototype Device 17818 | -3/Testing | Identified Imp. Particle Accelerator 18176 | -3/Testing | Found Prototype Device 18179 | -3/Testing | Identified Adv. Kinecellerator 18403 | -3/Testing | Build established: Scavenger-Skirmisher 18562 | -3/Testing | Found Prototype Energy Cannon 18562 | -3/Testing | Identified Potential Cannon 18691 | -3/Testing | Found Prototype Processor 18694 | -3/Testing | Identified Spectral Analyzer 18808 | -3/Testing | Garrison activated, responded to threat 18865 | -3/Testing | Build established: Scavenger-Tank 18948 | -3/Testing | Found Prototype Device 18960 | -3/Testing | Identified AEGIS Remote Shield 19298 | -3/Testing | Discovered new exit (range 3) 19300 | -3/Testing | Identified exit to Research 19302 | -3/Testing | Entered Research 19302 | -2/Research | Accompanied by 1 ally 19302 | -2/Research | Evolved 2 slots: Utility x2 19361 | -2/Research | Spotted B-90 Cyclops 19392 | -2/Research | Destroyed B-90 Cyclops 20512 | -2/Research | Spotted B-90 Cyclops 20520 | -2/Research | Destroyed B-90 Cyclops 20592 | -2/Research | Build established: Tank 21127 | -2/Research | Discovered new exit (range 17) 21196 | -2/Research | Identified exit to Quarantine 21198 | -2/Research | Entered Quarantine 21365 | -2/Quarantine | Found Alien Artifact 21365 | -2/Quarantine | Identified Phase Redirector 21390 | -2/Quarantine | Discovered new exit (range 23) 21731 | -2/Quarantine | Identified exit to Access 22052 | -2/Quarantine | Found Alien Artifact 22575 | -2/Quarantine | Entered Access 22575 | -1/Access | Evolved 2 slots: Power x1, Utility x1 23071 | -1/Access | Build established: Generator-Tank 23679 | -1/Access | System corruption reached 10% 23807 | -1/Access | Found Quantum Capacitor 24441 | -1/Access | Found Prototype Processor 24443 | -1/Access | Identified Exp. Core Analyzer 25285 | -1/Access | Spotted B-99 Colossus 25699 | -1/Access | Garrison activated, responded to threat 26005 | -1/Access | Build established: Generator-Skirmisher 26344 | -1/Access | Destroyed 11 combat bots 26398 | -1/Access | Discovered new exit (range 14) 26416 | -1/Access | Identified exit to Surface 26594 | -1/Access | Build established: Generator-Tank 26767 | -1/Access | Destroyed 7 combat bots 26825 | -1/Access | First assault squad dispatched 26965 | -1/Access | Destroyed 8 combat bots 27242 | -1/Access | Identified Subatomic Replicator 27242 | -1/Access | Used Subatomic Replicator to replicate Prc. Energy Filter 27939 | -1/Access | High security lockdown imminent 27974 | -1/Access | Destroyed 21 combat bots 28019 | -1/Access | High security lockdown engaged 28167 | -1/Access | Sterilization system engaged 28178 | -1/Access | Spotted B-99 Colossus 28178 | -1/Access | Spotted B-99 Colossus 28187 | -1/Access | Destroyed B-99 Colossus 28190 | -1/Access | Destroyed B-99 Colossus 28213 | -1/Access | Destroyed 21 combat bots 28256 | -1/Access | Destroyed Striker 28261 | -1/Access | Destroyed Executioner 28263 | -1/Access | Spotted Investigator 28263 | -1/Access | Scanned by Researcher 28268 | -1/Access | Destroyed Investigator 28287 | -1/Access | Destroyed 17 combat bots 28373 | -1/Access | Destroyed 9 combat bots 28467 | -1/Access | Ambient heat levels rising (+10) 28617 | -1/Access | Ambient heat levels rising (+10) 28758 | *** | Escaped! Last Messages --------------- Unknown Wheel melts. Imp. Linear Gravjet melts. 28589_ System corrupted: Component data lost. Myomer Leg melts. Rnf. Antimatter Reactor melts. Corrupted Lgt. Ion Engine melts. Adv. Heat Sink melts. 28617_ ALERT: Ambient heat levels +10. 28631_ System corrupted: Component data lost. Unknown Treads melts. Structural Scanner melts. 28653_ XQR2H OC35VLBP8TWJG81XT 28670_ System corrupted: Matter fused (-8). 28670_ Acquired 8 matter. Wheel+ melts. 28687_ #G> Y/YR2K&9N500IBWT=EUNJBWV3 28710_ System corrupted: Heat flow error (+178). Field Recycling Unit melts. 28728_ System corrupted: Heat flow error (+280). 28743_ 2XK UEOG5FWA%/,D